bitfinex-derivatives/quotes_BTCF0:USTF0_20241125
["timestamp","ask_amount","ask_price","bid_price","bid_amount"]
[1732558844834,0.15836,95784.0,95782.0,0.413003]
[1732558845030,0.3608,95796.0,95795.0,0.05076067]
[1732558845424,0.052194,95800.0,95799.0,0.052195]
[1732558845822,0.3608,95814.0,95799.0,0.0004]
[1732558846130,8.664e-05,95820.0,95813.0,0.3612]
[1732558846335,8.664e-05,95820.0,95814.0,0.0694]
[1732558846531,8.664e-05,95820.0,95819.0,0.052584]
[1732558848133,8.664e-05,95820.0,95819.0,0.0004]
[1732558848732,0.66088664,95820.0,95790.0,0.2959]
[1732558848933,0.052195,95799.0,95790.0,0.2959]
[1732558849128,0.14120936,95800.0,95790.0,0.2959]
[1732558849129,0.00040001,95791.0,95790.0,0.2959]
[1732558851035,0.00040001,95791.0,95787.0,0.0341]
[1732558851036,0.052201,95788.0,95787.0,0.0341]
[1732558851339,0.05260101,95788.0,95787.0,0.0341]
[1732558851534,0.00040001,95788.0,95781.0,0.02657718]
[1732558851734,0.00040001,95788.0,95786.0,0.052202]
[1732558852331,0.17592996,95832.0,95786.0,0.052202]
[1732558852332,0.141296,95820.0,95786.0,0.413002]
[1732558852540,0.16076,95810.0,95801.0,0.052193]
[1732558852838,0.052193,95802.0,95801.0,0.052193]
[1732558853034,0.16076,95802.0,95786.0,0.3608]
[1732558853240,0.16076,95802.0,95786.0,0.413002]
[1732558853241,0.052195,95799.0,95786.0,0.413002]
[1732558853440,0.0004,95787.0,95786.0,0.413002]
[1732558854530,0.052203,95784.0,95782.0,0.23789616]
[1732558854728,0.052205,95781.0,95779.0,0.0364]
[1732558855240,0.0004,95780.0,95779.0,0.0364]
[1732558855626,0.052209,95772.0,95771.0,0.07858069]
[1732558855827,0.212969,95772.0,95771.0,0.07858069]
[1732558856335,0.052206,95778.0,95777.0,0.052207]
[1732558856635,0.052206,95778.0,95767.0,0.0347]
[1732558856636,0.052207,95777.0,95767.0,0.0347]
[1732558856827,0.160838,95778.0,95767.0,0.0347]
[1732558857242,0.213044,95778.0,95777.0,0.0004]
[1732558858836,7.8e-05,95778.0,95777.0,0.0004]
[1732558859543,7.8e-05,95778.0,95777.0,0.052607]
[1732558860731,0.3608,95807.0,95793.0,0.052198]
[1732558860933,0.3608,95807.0,95806.0,0.052191]
[1732558861133,0.3608,95807.0,95786.0,0.3608]
[1732558861134,0.5216,95819.0,95803.0,0.052192]
[1732558861333,0.5216,95819.0,95806.0,0.052591]
[1732558861334,0.05219,95807.0,95806.0,0.052591]
[1732558861536,0.05219,95807.0,95806.0,0.052191]
[1732558861739,0.05228877,95807.0,95806.0,0.052191]
[1732558861930,9.877e-05,95807.0,95806.0,0.052191]
[1732558862335,9.877e-05,95807.0,95806.0,0.412991]
[1732558862540,0.18898198,95840.0,95817.0,0.052184]
[1732558862541,0.0026,95840.0,95817.0,0.052184]
[1732558862734,0.6434,95835.0,95821.0,0.3608]
[1732558862935,0.16076,95839.0,95821.0,0.3608]
[1732558863138,0.14120936,95831.0,95818.0,0.0699]
[1732558863330,0.052187,95813.0,95812.0,0.3608]
[1732558863534,0.05232075,95813.0,95812.0,0.3608]
[1732558863739,0.05272075,95813.0,95812.0,0.052188]
[1732558863945,0.05219,95810.0,95809.0,0.052189]
[1732558864134,0.052191,95806.0,95805.0,0.0356]
[1732558864533,0.052591,95806.0,95805.0,0.0356]
[1732558865854,0.052591,95806.0,95805.0,0.00745957]
[1732558866459,0.052591,95806.0,95805.0,0.05965057]
[1732558866847,0.0004,95806.0,95805.0,0.05965057]
[1732558867851,0.052591,95806.0,95805.0,0.05965057]
[1732558868648,0.0004,95806.0,95799.0,0.38748093]
[1732558868856,0.0004,95806.0,95804.0,0.052191]
[1732558868857,0.052192,95805.0,95804.0,0.052191]
[1732558869059,0.052192,95805.0,95799.0,0.38748093]
[1732558869060,0.05219,95809.0,95808.0,0.052189]
[1732558869458,0.05219,95809.0,95808.0,0.052589]
[1732558870160,0.00013375,95813.0,95812.0,0.052188]
[1732558870554,0.00013375,95813.0,95812.0,0.052588]
[1732558870864,0.00013375,95813.0,95812.0,0.365708]
[1732558871062,0.51583246,95836.0,95812.0,0.365708]
[1732558871063,0.12448858,95835.0,95822.0,0.052182]
[1732558871363,0.48256,95847.0,95814.0,0.052186]
[1732558871364,0.052174,95838.0,95826.0,0.05218]
[1732558871662,0.052174,95838.0,95837.0,0.052574]
[1732558872163,0.05228794,95838.0,95837.0,0.052574]
[1732558872857,0.00011394,95838.0,95837.0,0.052574]
[1732558873055,0.05228694,95838.0,95837.0,0.052574]
[1732558874265,0.05228694,95838.0,95837.0,0.0004]
[1732558874470,0.23515509,95838.0,95837.0,7.416e-05]
[1732558874659,0.18298209,95838.0,95815.0,0.052186]
[1732558874856,0.3608,95822.0,95811.0,0.38779459]
[1732558875175,0.052188,95812.0,95811.0,0.38779459]
[1732558875364,0.052188,95812.0,95811.0,0.43998259]
[1732558875761,0.052188,95812.0,95811.0,0.38122768]
[1732558876561,0.052186,95816.0,95815.0,0.052185]
[1732558876966,0.052186,95816.0,95815.0,0.052585]
[1732558877669,0.412983,95822.0,95821.0,0.052183]
[1732558877864,0.412983,95822.0,95815.0,0.0004]
[1732558877865,0.052185,95816.0,95815.0,0.052586]
[1732558878059,0.052185,95816.0,95815.0,0.052186]
[1732558878261,0.052188,95812.0,95811.0,0.32903968]
[1732558878465,0.052188,95812.0,95811.0,0.38122768]
[1732558878662,0.052588,95812.0,95811.0,0.38122768]
[1732558878865,0.052588,95812.0,95811.0,0.32903968]
[1732558879268,0.052588,95812.0,95811.0,0.38122768]
[1732558879572,0.0004,95812.0,95811.0,0.38122768]
[1732558880156,0.16004,95812.0,95810.0,0.0354]
[1732558880358,0.052199,95792.0,95791.0,0.02638891]
[1732558880562,0.052199,95792.0,95791.0,0.052199]
[1732558880757,0.05156087,95787.0,95786.0,0.088301]
[1732558880968,0.05156087,95787.0,95786.0,0.0361]
[1732558881169,0.05196087,95787.0,95786.0,0.0361]
[1732558881466,0.05196087,95787.0,95786.0,0.088302]
[1732558881467,0.0004,95787.0,95786.0,0.088302]
[1732558881860,0.052601,95787.0,95786.0,0.088302]
[1732558882073,0.0004,95787.0,95786.0,0.088302]
[1732558886471,0.15625935,95787.0,95786.0,0.088302]
[1732558886869,0.0004,95787.0,95786.0,0.088302]
[1732558887064,0.15625935,95787.0,95786.0,0.088302]
[1732558887264,0.15641615,95787.0,95786.0,0.088302]
[1732558887471,0.052601,95787.0,95786.0,0.0361]
[1732558887672,0.052203,95784.0,95783.0,0.02668262]
[1732558887972,0.052206,95778.0,95777.0,0.052207]
[1732558888269,0.10338713,95778.0,95777.0,0.052207]
[1732558888471,0.18770927,95778.0,95775.0,0.034]
[1732558888673,0.18770927,95778.0,95774.0,0.02596957]
[1732558888674,0.05221,95771.0,95770.0,0.3608]
[1732558889067,0.05261,95771.0,95770.0,0.3608]
[1732558889272,0.05261,95771.0,95770.0,0.38690458]
[1732558889665,0.05261,95771.0,95770.0,0.43911558]
[1732558890378,0.05261,95771.0,95770.0,0.02610458]
[1732558890572,0.0004,95771.0,95764.0,0.034]
[1732558890780,0.052213,95765.0,95763.0,9.04e-05]
[1732558890966,0.052213,95765.0,95749.0,0.3608]
[1732558890967,0.052217,95759.0,95756.0,0.052218]
[1732558891167,0.08333039,95758.0,95756.0,0.052218]
[1732558891374,0.03151339,95757.0,95756.0,0.052218]
[1732558891575,0.03151339,95757.0,95749.0,0.3608]
[1732558891576,0.05222,95753.0,95749.0,0.43950249]
[1732558891780,0.00900524,95752.0,95749.0,0.38728049]
[1732558891982,0.0004,95750.0,95749.0,0.38728049]
[1732558892273,0.00940524,95750.0,95749.0,0.38728049]
[1732558892772,0.00940524,95750.0,95749.0,0.70060049]
[1732558893165,0.00940524,95750.0,95749.0,0.67708561]
[1732558894272,0.00940524,95750.0,95749.0,0.71368561]
[1732558895276,0.00940524,95750.0,95749.0,0.06308049]
[1732558895481,0.00940524,95750.0,95749.0,0.02648049]
[1732558895681,0.00940524,95750.0,95746.0,0.00012449]
[1732558895980,0.02555386,95749.0,95747.0,0.02870495]
[1732558896180,0.52048,95759.0,95746.0,0.00012449]
[1732558896181,0.02689181,95748.0,95746.0,0.00012449]
[1732558896371,0.10122296,95747.0,95746.0,0.02709666]
[1732558896572,0.10120559,95747.0,95746.0,0.00012449]
[1732558896880,0.052229,95736.0,95734.0,0.0366]
[1732558897074,0.18655444,95747.0,95734.0,0.0366]
[1732558897075,0.02687444,95735.0,95734.0,0.0366]
[1732558897276,0.02727444,95735.0,95734.0,0.0366]
[1732558897673,0.02727444,95735.0,95732.0,0.03002897]
[1732558897979,0.0004,95733.0,95732.0,0.03002897]
[1732558898179,0.02727444,95733.0,95732.0,0.03002897]
[1732558898682,0.02727444,95733.0,95730.0,9.485e-05]
[1732558898876,0.052631,95733.0,95730.0,9.485e-05]
[1732558899086,0.0004,95731.0,95730.0,9.485e-05]
[1732558899380,0.02492499,95731.0,95730.0,9.485e-05]
[1732558899588,0.02491079,95731.0,95730.0,9.485e-05]
[1732558899974,0.00982723,95731.0,95730.0,9.485e-05]
[1732558900990,0.0004,95731.0,95730.0,0.64158621]
[1732558901281,0.052222,95750.0,95745.0,0.052224]
[1732558902073,0.052226,95742.0,95740.0,0.36089368]
[1732558902674,0.3608,95741.0,95740.0,9.368e-05]
[1732558902870,0.3608,95741.0,95710.0,0.3608]
[1732558902871,0.05224,95716.0,95710.0,0.3608]
[1732558903082,0.052243,95711.0,95710.0,0.3608]
[1732558903276,0.3608,95719.0,95710.0,0.38723349]
[1732558903277,0.0004,95716.0,95710.0,0.38723349]
[1732558903479,0.0004,95711.0,95710.0,0.38723349]
[1732558903977,0.3608,95730.0,95710.0,0.38723349]
[1732558903978,9.751e-05,95720.0,95719.0,0.052238]
[1732558906474,9.751e-05,95720.0,95710.0,0.38933471]
[1732558906475,0.05233551,95720.0,95714.0,0.052241]
[1732558906789,0.0004,95715.0,95714.0,0.052241]
[1732558908789,0.0004,95715.0,95714.0,0.365681]
[1732558909685,0.0004,95715.0,95714.0,0.523681]
[1732558910081,0.0004,95715.0,95714.0,0.210241]
[1732558911082,0.0004,95715.0,95714.0,0.052241]
[1732558911390,0.0004,95715.0,95710.0,0.38733471]
[1732558911391,0.0004,95715.0,95710.0,0.02653471]
[1732558911583,0.0004,95715.0,95712.0,0.052242]
[1732558911782,0.052241,95714.0,95712.0,0.052242]
[1732558913486,9.751e-05,95720.0,95710.0,0.02653471]
[1732558913487,0.052243,95711.0,95710.0,0.02653471]
[1732558913992,0.052243,95711.0,95710.0,0.00010122]
[1732558914580,0.052244,95709.0,95708.0,0.02630221]
[1732558914796,0.052247,95703.0,95701.0,0.052248]
[1732558916192,0.0004,95709.0,95700.0,0.12715324]
[1732558916386,0.052248,95701.0,95700.0,0.12715324]
[1732558916592,0.052648,95701.0,95700.0,0.12715324]
[1732558920984,0.14589587,95701.0,95700.0,0.10011181]
[1732558921189,0.05226,95680.0,95679.0,0.00088]
[1732558921391,0.3608,95685.0,95679.0,0.02700224]
[1732558921588,0.05266,95680.0,95679.0,0.052259]
[1732558922190,0.05266,95680.0,95679.0,0.05235488]
[1732558922386,0.0004,95680.0,95679.0,0.05235488]
[1732558922996,0.05266,95680.0,95679.0,0.05235488]
[1732558923699,0.05266,95680.0,95679.0,9.588e-05]
[1732558924286,0.05266,95680.0,95672.0,0.02666362]
[1732558924287,0.0004,95680.0,95672.0,0.04625501]
[1732558924493,0.052264,95674.0,95673.0,0.052263]
[1732558924695,0.3608,95677.0,95676.0,0.052262]
[1732558925090,0.052261,95678.0,95676.0,0.05266201]
[1732558925296,0.12473496,95689.0,95676.0,0.05266201]
[1732558925297,0.12473496,95693.0,95688.0,0.052255]
[1732558925590,0.210331,95696.0,95690.0,0.052254]
[1732558925591,0.14577108,95691.0,95690.0,0.052254]
[1732558925797,0.09351708,95694.0,95692.0,0.052253]
[1732558925999,0.36136001,95703.0,95685.0,0.3608]
[1732558926000,0.02526821,95696.0,95694.0,0.052252]
[1732558926191,0.3608,95703.0,95701.0,0.052248]
[1732558926192,0.052248,95702.0,95701.0,0.052248]
[1732558926508,0.052251,95697.0,95696.0,0.052251]
[1732558926800,0.052251,95697.0,95695.0,0.00040001]
[1732558926994,0.02526821,95696.0,95695.0,0.00040001]
[1732558927189,0.02566821,95696.0,95695.0,0.00040001]
[1732558927390,0.0004,95696.0,95695.0,0.05265101]
[1732558928300,0.02566821,95696.0,95695.0,0.00040001]
[1732558928490,0.0004,95696.0,95695.0,0.00040001]
[1732558928891,0.0004,95696.0,95695.0,0.05265101]
[1732558931209,0.0004,95696.0,95695.0,0.00040001]
[1732558932401,0.0004,95696.0,95677.0,8.449e-05]
[1732558932402,0.05226,95679.0,95677.0,8.449e-05]
[1732558932605,0.28626351,95678.0,95677.0,8.449e-05]
[1732558932805,0.28666351,95678.0,95677.0,8.449e-05]
[1732558933395,0.31193172,95678.0,95677.0,8.449e-05]
[1732558933600,0.31193172,95678.0,95677.0,1.063e-05]
[1732558934303,0.052267,95667.0,95666.0,0.32883448]
[1732558934505,0.09364439,95668.0,95663.0,0.052269]
[1732558934809,0.15808,95674.0,95663.0,0.052269]
[1732558934810,0.052668,95664.0,95663.0,0.052269]
[1732558935598,0.052668,95664.0,95663.0,0.07914387]
[1732558935902,0.052668,95664.0,95663.0,0.02687487]
[1732558936102,0.052668,95664.0,95660.0,0.03650332]
[1732558936103,0.052269,95663.0,95660.0,0.08877332]
[1732558936306,0.0004,95664.0,95660.0,0.08877332]
[1732558936513,0.0004,95661.0,95660.0,0.03650332]
[1732558936698,0.0004,95661.0,95660.0,0.02657537]
[1732558936699,0.48605919,95661.0,95660.0,0.02657537]
[1732558936899,0.67490317,95661.0,95642.0,0.034]
[1732558937102,0.67490317,95661.0,95641.0,0.052281]
[1732558937103,0.05228,95642.0,95641.0,0.052281]
[1732558937403,0.05268,95642.0,95641.0,0.052281]
[1732558938104,0.05268,95642.0,95641.0,0.05239907]
[1732558938301,0.05268,95642.0,95641.0,0.00011807]
[1732558938500,0.05268,95642.0,95641.0,0.05239907]
[1732558938997,0.0004,95642.0,95641.0,0.05239907]
[1732558939197,0.09366005,95652.0,95641.0,0.36607907]
[1732558939400,0.09366005,95653.0,95651.0,0.052275]
[1732558939597,0.09366005,95654.0,95653.0,0.052274]
[1732558940007,0.12488007,95658.0,95653.0,0.0004]
[1732558940211,0.052271,95659.0,95657.0,0.052272]
[1732558940212,0.17715107,95659.0,95657.0,0.052272]
[1732558940506,0.38669963,95671.0,95657.0,0.052272]
[1732558940507,0.12488007,95658.0,95657.0,0.052672]
[1732558941012,0.36090317,95661.0,95657.0,0.052672]
[1732558941204,0.36090317,95661.0,95657.0,0.0004]
[1732558941406,0.052271,95659.0,95658.0,0.052272]
[1732558941905,0.052271,95659.0,95658.0,0.088172]
[1732558942106,0.36090317,95661.0,95658.0,0.088172]
[1732558942107,0.36090317,95661.0,95660.0,0.052271]
[1732558942308,0.00010317,95661.0,95660.0,0.052271]
[1732558942508,0.00010317,95661.0,95660.0,0.052671]
[1732558942902,0.00010317,95661.0,95660.0,0.0004]
[1732558943107,0.00010317,95661.0,95660.0,0.052671]
[1732558944210,0.00010317,95661.0,95657.0,0.02119066]
[1732558944411,0.00010317,95661.0,95649.0,0.0725]
[1732558944412,0.052272,95658.0,95649.0,0.0725]
[1732558944715,0.052672,95658.0,95656.0,0.052272]
[1732558945615,0.052275,95652.0,95650.0,0.052276]
[1732558945804,0.0004,95658.0,95649.0,0.0992351]
[1732558946116,0.09443261,95660.0,95649.0,0.0992351]
[1732558946117,0.052676,95650.0,95649.0,0.0267351]
[1732558946305,0.052676,95650.0,95643.0,0.05228]
[1732558946306,0.052279,95645.0,95643.0,0.05228]
[1732558946907,0.052279,95645.0,95643.0,0.07855109]
[1732558947110,0.052679,95644.0,95643.0,0.07855109]
[1732558947508,0.052679,95644.0,95643.0,0.02627109]
[1732558947712,0.052679,95644.0,95636.0,0.052283]
[1732558947713,0.05228,95642.0,95636.0,0.052283]
[1732558948119,0.05268,95642.0,95636.0,0.052283]
[1732558948920,0.05268,95642.0,95634.0,0.0698]
[1732558949321,0.05268,95642.0,95634.0,0.4306]
[1732558949625,0.05268,95642.0,95636.0,0.02613686]
[1732558950820,0.05268,95642.0,95640.0,0.052281]
[1732558951020,0.0004,95642.0,95640.0,0.052281]
[1732558951224,0.0004,95642.0,95641.0,0.05239907]
[1732558952422,0.05268,95642.0,95641.0,0.05239907]
[1732558953621,0.05268,95642.0,95641.0,0.00011807]
[1732558954718,0.05268,95642.0,95633.0,0.052285]
[1732558954719,0.052285,95634.0,95633.0,0.02594871]
[1732558954922,0.052285,95634.0,95633.0,0.05302654]
[1732558955132,0.052685,95634.0,95633.0,0.02594871]
[1732558956123,0.0004,95634.0,95633.0,0.02594871]
[1732558956322,0.0004,95634.0,95633.0,0.05303449]
[1732558956722,0.05187199,95634.0,95633.0,0.05303449]
[1732558957420,0.05187199,95634.0,95625.0,0.31394495]
[1732558957817,0.0004,95626.0,95625.0,0.36623495]
[1732558958018,0.0004,95626.0,95625.0,0.39212222]
[1732558958523,0.0004,95626.0,95625.0,0.39222721]
[1732558959019,0.0004,95626.0,95625.0,0.02599226]
[1732558959221,0.052689,95626.0,95625.0,0.02599226]
[1732558959818,0.17756907,95626.0,95625.0,0.02599226]
[1732558960018,0.052689,95626.0,95625.0,0.02599226]
[1732558961628,0.052292,95621.0,95611.0,0.3998]
[1732558961932,0.052292,95621.0,95606.0,0.0523]
[1732558961933,0.0523,95607.0,95606.0,0.0523]
[1732558962120,0.052299,95608.0,95607.0,0.052298]
[1732558962624,0.052299,95608.0,95607.0,0.05242236]
[1732558963229,0.14608303,95608.0,95607.0,0.05242236]
[1732558963928,0.14608303,95608.0,95607.0,0.00012436]
[1732558964120,0.052299,95608.0,95607.0,0.00012436]
[1732558969231,0.210499,95608.0,95607.0,0.00012436]
[1732558969419,0.052299,95608.0,95607.0,0.05242436]
[1732558970122,0.052299,95608.0,95607.0,0.00012436]
[1732558971426,0.052299,95608.0,95607.0,0.05242436]
[1732558971829,0.052299,95608.0,95607.0,0.00012436]
[1732558973327,0.052299,95608.0,95607.0,0.05242436]
[1732558974130,0.052299,95608.0,95607.0,0.00012436]
[1732558974736,0.052299,95608.0,95607.0,0.05242436]
[1732558976628,0.6440671,95612.0,95607.0,0.00012436]
[1732558976928,0.571297,95612.0,95611.0,0.052697]
[1732558977330,0.6963641,95612.0,95611.0,0.052697]
[1732558977737,0.6963641,95612.0,95611.0,0.06276891]
[1732558978335,0.413097,95612.0,95611.0,0.01047191]
[1732558978537,0.571297,95612.0,95611.0,0.01047191]
[1732558983137,0.413097,95612.0,95611.0,0.01047191]
[1732558983339,0.12496889,95617.0,95616.0,0.052295]
[1732558983640,0.09381583,95624.0,95616.0,0.413495]
[1732558983833,0.09381583,95629.0,95627.0,0.052289]
[1732558984033,0.05284401,95636.0,95631.0,0.052286]
[1732558984034,0.09381583,95632.0,95631.0,0.052286]
[1732558984239,0.09383139,95632.0,95628.0,0.0004]
[1732558984436,0.09383139,95635.0,95634.0,0.052285]
[1732558984741,0.09383139,95643.0,95641.0,0.052281]
[1732558984935,0.09383139,95648.0,95642.0,0.0699]
[1732558985139,0.09383139,95648.0,95647.0,0.052278]
[1732558985340,0.09383139,95648.0,95635.0,0.0334]
[1732558985341,0.09383139,95649.0,95636.0,0.122184]
[1732558985640,0.09383139,95649.0,95634.0,0.01007191]
[1732558985641,0.052284,95635.0,95634.0,0.01007191]
[1732558985834,0.14611539,95635.0,95634.0,0.01007191]
[1732558986145,0.14611539,95635.0,95618.0,0.0668]
[1732558986146,0.17725289,95635.0,95608.0,0.18627594]
[1732558986333,0.17725289,95635.0,95609.0,0.052298]
[1732558986334,0.052298,95611.0,95609.0,0.052298]
[1732558986535,0.052298,95609.0,95607.0,0.00012436]
[1732558986940,0.09421631,95608.0,95607.0,0.00012436]
[1732558987441,0.12548842,95608.0,95607.0,0.00012436]
[1732558987641,0.0004,95608.0,95607.0,0.00012436]
[1732558987944,0.12556139,95608.0,95607.0,0.00012436]
[1732558988140,0.00051981,95608.0,95607.0,0.00012436]
[1732558988336,0.00051981,95608.0,95600.0,0.1]
[1732558988337,0.052303,95601.0,95600.0,0.1]
[1732558988538,0.72780649,95601.0,95600.0,0.1]
[1732558988739,0.571703,95601.0,95600.0,0.1]
[1732558989044,0.885503,95601.0,95600.0,0.1]
[1732558989237,0.9363928,95601.0,95600.0,0.1]
[1732558990444,0.885503,95601.0,95600.0,0.1]
[1732558990839,0.413503,95601.0,95600.0,0.1]
[1732558991041,0.571703,95601.0,95600.0,0.1]
[1732558991645,0.571743,95601.0,95600.0,0.1]
[1732558991847,0.51944,95601.0,95600.0,0.1]
[1732558992038,0.3612,95601.0,95600.0,0.1]
[1732558992239,0.3612,95601.0,95600.0,0.4608]
[1732558992240,0.0004,95601.0,95600.0,0.4608]
[1732558993446,0.00011981,95608.0,95607.0,0.0523]
[1732558994550,0.00011981,95608.0,95607.0,0.0527]
[1732558995646,0.12526865,95608.0,95607.0,0.0527]
[1732558996352,0.00011981,95608.0,95607.0,0.07749483]
[1732558997643,0.12526254,95608.0,95607.0,0.07749483]
[1732558997944,0.07006254,95608.0,95607.0,0.07749483]
[1732558998147,0.09385217,95609.0,95607.0,0.69129483]
[1732558998347,0.09385217,95616.0,95610.0,0.052298]
[1732558998542,0.09385217,95616.0,95615.0,0.413095]
[1732558998847,0.09385217,95616.0,95615.0,0.413495]
[1732558999455,0.15658472,95625.0,95615.0,0.3612]
[1732558999652,0.052292,95621.0,95619.0,0.052293]
[1732559000537,0.20877521,95621.0,95619.0,0.052293]
[1732559000747,0.052292,95621.0,95619.0,0.052293]
[1732559001649,0.052292,95621.0,95619.0,0.07695041]
[1732559002652,0.052292,95620.0,95619.0,0.07695041]
[1732559004352,0.052292,95620.0,95619.0,0.02465741]
[1732559004653,0.052292,95620.0,95619.0,0.052293]
[1732559006257,0.052292,95620.0,95619.0,0.0252487]
[1732559006458,0.0523,95608.0,95607.0,0.052299]
[1732559006857,0.0527,95608.0,95607.0,0.052299]
[1732559008659,0.0004,95608.0,95607.0,0.052299]
[1732559009861,0.1567744,95608.0,95607.0,0.052299]
[1732559010367,0.0004,95608.0,95607.0,0.052299]
[1732559010863,0.0004,95608.0,95607.0,0.366099]
[1732559011754,0.15638474,95617.0,95616.0,0.052295]
[1732559011954,0.18773877,95625.0,95616.0,0.3998]
[1732559011955,0.05087154,95621.0,95616.0,0.3998]
[1732559012160,0.00010151,95625.0,95624.0,0.05229]
[1732559012466,0.54843726,95644.0,95642.0,0.05228]
[1732559012762,0.3608,95644.0,95643.0,0.05228]
[1732559012959,0.3608,95644.0,95643.0,0.05308]
[1732559014460,9.727e-05,95645.0,95644.0,0.052279]
[1732559014654,9.727e-05,95645.0,95644.0,0.923879]
[1732559014655,2.7e-07,95645.0,95644.0,0.923879]
[1732559014855,0.05085338,95663.0,95662.0,0.052269]
[1732559015161,0.413063,95674.0,95668.0,0.052266]
[1732559015162,0.052266,95669.0,95668.0,0.052266]
[1732559015369,0.052266,95669.0,95662.0,0.3616]
[1732559015370,0.3608,95674.0,95673.0,0.052263]
[1732559015661,0.3608,95674.0,95673.0,0.053063]
[1732559015854,0.36089201,95674.0,95673.0,0.053063]
[1732559016264,9.201e-05,95674.0,95673.0,0.053063]
[1732559016659,9.201e-05,95674.0,95673.0,0.07835003]
[1732559017366,0.02439255,95697.0,95673.0,0.07835003]
[1732559017367,0.0026,95702.0,95700.0,0.052249]
[1732559017672,0.052244,95708.0,95707.0,0.052245]
[1732559017868,0.3608,95710.0,95701.0,0.0008]
[1732559018070,0.3608,95710.0,95709.0,0.052244]
[1732559018269,0.36092946,95710.0,95709.0,0.053044]
[1732559018983,0.36092946,95710.0,95709.0,0.0008]
[1732559019365,0.36092946,95710.0,95709.0,0.02553234]
[1732559019667,0.36092946,95710.0,95709.0,0.0008]
[1732559021865,0.36092946,95710.0,95709.0,0.02535552]
[1732559022068,0.36092946,95710.0,95709.0,0.0008]
[1732559022965,0.00012946,95710.0,95709.0,0.0008]
[1732559023270,0.00012946,95710.0,95709.0,0.02636351]
[1732559023473,0.00012946,95710.0,95709.0,0.00091642]
[1732559024071,0.15146,95728.0,95727.0,0.052234]
[1732559024572,0.15146,95728.0,95727.0,0.053034]
[1732559024762,0.15146,95728.0,95727.0,0.0008]
[1732559025070,0.15158805,95728.0,95727.0,0.0008]
[1732559025264,0.20382105,95728.0,95727.0,0.0008]
[1732559026368,0.20382105,95728.0,95727.0,0.0783826]
[1732559026369,0.15158805,95728.0,95727.0,0.0783826]
[1732559026669,0.15158805,95728.0,95727.0,0.211034]
[1732559026872,0.15158805,95728.0,95727.0,0.571834]
[1732559027272,0.15158805,95728.0,95727.0,0.885234]
[1732559027776,0.15158805,95728.0,95727.0,0.413834]
[1732559030576,0.20382105,95728.0,95727.0,0.0008]
[1732559030880,0.15158805,95728.0,95727.0,0.0008]
[1732559031473,0.15158805,95728.0,95727.0,0.3616]
[1732559031677,0.3608,95754.0,95741.0,0.052226]
[1732559031678,0.052223,95748.0,95741.0,0.052226]
[1732559031870,0.3608,95754.0,95736.0,0.3608]
[1732559032177,0.00056001,95760.0,95750.0,0.0008]
[1732559032369,0.0358,95751.0,95750.0,0.0008]
[1732559032777,0.03592711,95751.0,95750.0,0.0008]
[1732559033775,0.00012711,95751.0,95750.0,0.0008]
[1732559034476,0.00012711,95751.0,95750.0,0.1586]
[1732559034781,1.1e-07,95751.0,95750.0,0.3395647]
[1732559035284,0.1927,95780.0,95777.0,0.052207]
[1732559035573,0.0349,95780.0,95777.0,0.052207]
[1732559035774,0.0349,95780.0,95777.0,0.053007]
[1732559036275,9.188e-05,95778.0,95777.0,0.05308214]
[1732559037573,9.188e-05,95778.0,95777.0,0.07810864]
[1732559038376,0.037,95790.0,95789.0,0.0522]
[1732559038579,0.03645181,95790.0,95789.0,0.0522]
[1732559038772,0.03645181,95790.0,95789.0,0.053]
[1732559039473,0.03656895,95790.0,95789.0,0.053]
[1732559041078,0.00011714,95790.0,95789.0,0.053]
[1732559042073,0.1,95800.0,95799.0,0.052195]
[1732559042273,0.1,95800.0,95799.0,0.412995]
[1732559042478,0.1,95800.0,95799.0,0.413795]
[1732559042681,0.1,95800.0,95799.0,0.0008]
[1732559043080,0.1,95800.0,95789.0,0.02487972]
[1732559043081,0.001,95790.0,95789.0,0.02687972]
[1732559043582,0.0014,95790.0,95789.0,0.02687972]
[1732559044981,0.0014,95790.0,95789.0,0.02487972]
[1732559044982,0.0004,95790.0,95789.0,0.02487972]
[1732559045279,0.0004,95790.0,95788.0,0.413001]
[1732559045785,0.0014,95790.0,95789.0,0.002]
[1732559046088,0.00010378,95799.0,95798.0,0.052195]
[1732559046381,0.0703,95817.0,95798.0,0.413395]
[1732559046587,0.0352,95817.0,95816.0,0.052185]
[1732559046883,0.0352,95817.0,95815.0,0.3608]
[1732559046884,0.15768,95837.0,95815.0,0.7216]
[1732559047070,0.3608,95827.0,95820.0,0.052183]
[1732559047274,0.3608,95827.0,95804.0,0.3608]
[1732559047573,0.05231606,95817.0,95812.0,0.052188]
[1732559047775,0.00013106,95817.0,95816.0,0.052185]
[1732559050271,0.00013106,95817.0,95816.0,0.07753212]
[1732559051878,0.00113106,95817.0,95816.0,0.08053212]
[1732559052185,0.00113106,95817.0,95816.0,0.003]
[1732559052483,0.47189106,95817.0,95791.0,0.3608]
[1732559052788,0.3608,95800.0,95778.0,0.3608]
[1732559052982,0.052201,95788.0,95778.0,0.3608]
[1732559053281,0.22918,95799.0,95778.0,0.3608]
[1732559053282,0.052198,95794.0,95792.0,0.052198]
[1732559053483,0.19238,95799.0,95798.0,0.052195]
[1732559053688,0.3608,95807.0,95806.0,0.052191]
[1732559054082,0.3608,95807.0,95806.0,0.052591]
[1732559054785,0.3608,95807.0,95806.0,0.0004]
[1732559055286,0.67392,95807.0,95793.0,0.052198]
[1732559055582,0.0522,95789.0,95787.0,0.052201]
[1732559055979,0.0004,95788.0,95787.0,0.052201]
[1732559056889,0.0004,95788.0,95787.0,0.06677448]
[1732559059487,0.0014,95788.0,95787.0,0.06677448]
[1732559060183,0.0014,95788.0,95787.0,0.53753448]
[1732559060383,0.0014,95788.0,95787.0,0.54602243]
[1732559060686,0.0014,95788.0,95787.0,0.54602242]
[1732559061384,0.0349,95805.0,95804.0,0.052192]
[1732559061688,0.36093106,95817.0,95804.0,0.01497348]
[1732559061984,0.36093106,95817.0,95816.0,0.052585]
[1732559062182,0.00013106,95817.0,95816.0,0.052585]